bitfinex-derivatives/quotes_SOLF0:USTF0_20251024
["timestamp","ask_amount","ask_price","bid_price","bid_amount"]
[1761294760510,2.6,192.31,192.25,44.10476562]
[1761294760915,2.6,192.31,192.25,45.62423577]
[1761294762818,2.6,192.31,192.25,107.62423577]
[1761294764104,2.6,192.31,192.25,112.30483577]
[1761294765319,2.6,192.31,192.27,1.51947015]
[1761294765521,2.6,192.31,192.26,1.51947015]
[1761294766719,2.6,192.31,192.28,1.51947015]
[1761294769218,2.6,192.35,192.28,1.51947015]
[1761294769519,2.6,192.35,192.32,1.51947015]
[1761294771124,6.84262601,192.38,192.34,1.51947015]
[1761294771421,2.6,192.38,192.3,43.2]
[1761294771617,2.6,192.38,192.35,1.51947015]
[1761294776332,2.6,192.38,192.37,1.51947015]
[1761294779636,2.59,192.4,192.37,1.51947015]
[1761294779840,2.59,192.4,192.39,1.51947015]
[1761294780046,6.84076562,192.4,192.39,1.51947015]
[1761294781646,4.25076562,192.4,192.39,1.51947015]
[1761294782344,2.59,192.41,192.39,1.51947015]
[1761294785948,2.59,192.44,192.39,1.51947015]
[1761294786144,2.59,192.44,192.43,1.51947015]
[1761294786646,2.59,192.47,192.43,1.51947015]
[1761294786841,4.85510228,192.48,192.43,1.51947015]
[1761294786842,2.59,192.45,192.43,1.51947015]
[1761294789650,2.59,192.45,192.41,1.51947015]
[1761294789846,2.59,192.45,192.4,1.51947015]
[1761294790241,2.59,192.45,192.31,77.6]
[1761294790242,2.59,192.45,192.39,1.51947015]
[1761294791349,2.59,192.45,192.38,4.6775]
[1761294791651,2.59,192.45,192.4,1.51947015]
[1761294793152,2.59,192.45,192.38,4.6775]
[1761294793346,2.59,192.45,192.4,1.51947015]
[1761294796654,2.59,192.49,192.42,2.37454305]
[1761294796860,4.21769492,192.48,192.42,2.37454305]
[1761294797161,4.21769492,192.47,192.42,2.37454305]
[1761294797349,2.59,192.49,192.42,2.37454305]
[1761294797554,4.21681199,192.48,192.42,2.37454305]
[1761294797750,2.59,192.49,192.42,2.37454305]
[1761294797955,4.21674877,192.48,192.42,7.05104305]
[1761294798258,2.59,192.49,192.42,7.05104305]
[1761294799063,4.2154846,192.48,192.42,7.05104305]
[1761294799263,2.59,192.49,192.42,7.05104305]
[1761294799466,4.21452483,192.48,192.42,7.05104305]
[1761294799656,2.59,192.48,192.42,69.05104305]
[1761294800252,2.59,192.48,192.43,4.6763]
[1761294803664,2.59,192.48,192.38,2.37454305]
[1761294804462,2.59,192.48,192.38,64.37454305]
[1761294805168,2.59,192.46,192.39,4.6773]
[1761294806569,2.59,192.46,192.4,4.677]
[1761294808771,2.59,192.46,192.41,4.6768]
[1761294808971,4.21332247,192.48,192.38,64.37454305]
[1761294809164,2.75,192.48,192.38,64.37454305]
[1761294810073,2.75,192.48,192.42,4.6765]
[1761294810261,2.75,192.5,192.42,2.37454305]
[1761294810467,2.75,192.48,192.42,45.45454305]
[1761294812173,2.75,192.48,192.44,4.6761]
[1761294814476,7.4246,192.51,192.44,4.6761]
[1761294814676,4.20519464,192.5,192.44,4.6761]
[1761294814980,6.95519464,192.49,192.44,4.6761]
[1761294815276,4.20519464,192.48,192.44,4.6761]
[1761294815464,2.75,192.49,192.44,4.6761]
[1761294815668,4.2063621,192.48,192.44,4.6761]
[1761294815870,2.75,192.49,192.44,4.6761]
[1761294816071,4.20636178,192.48,192.44,4.6761]
[1761294816269,2.75,192.49,192.44,4.6761]
[1761294816471,4.20756618,192.48,192.44,4.6761]
[1761294816772,2.75,192.49,192.42,47.7565]
[1761294816966,2.75,192.49,192.42,45.45454305]
[1761294817173,4.20795387,192.48,192.42,45.45454305]
[1761294817371,2.75,192.49,192.42,45.45454305]
[1761294817575,4.20795419,192.48,192.42,45.45454305]
[1761294817774,2.75,192.49,192.42,45.45454305]
[1761294817980,4.20795319,192.48,192.42,45.45454305]
[1761294818177,2.75,192.49,192.42,4.6765]
[1761294818381,4.20901622,192.48,192.42,43.06]
[1761294818576,2.75,192.49,192.42,43.06]
[1761294818777,2.75,192.47,192.42,43.06]
[1761294819876,2.75,192.47,192.42,47.7365]
[1761294820278,2.75,192.45,192.42,47.7365]
[1761294821678,2.75,192.45,192.42,43.06]
[1761294823176,2.75,192.45,192.4,50.11154305]
[1761294824184,4.21616898,192.44,192.4,50.11154305]
[1761294824375,2.75,192.43,192.4,50.11154305]
[1761294825383,7.72224641,192.46,192.4,50.11154305]
[1761294825584,2.75,192.44,192.4,50.11154305]
[1761294828584,7.4255,192.47,192.4,50.11154305]
[1761294828786,9.19705535,192.46,192.4,45.43454305]
[1761294828985,4.22013293,192.45,192.4,45.43454305]
[1761294829186,4.22013293,192.44,192.4,45.43454305]
[1761294829388,4.22013293,192.43,192.4,45.43454305]
[1761294829586,2.75,192.47,192.4,45.43454305]
[1761294829789,9.19939378,192.46,192.4,45.43454305]
[1761294829989,11.94939378,192.45,192.42,4.6765]
[1761294830190,4.22120694,192.44,192.42,4.6765]
[1761294830488,4.22120694,192.43,192.42,4.6765]
[1761294840307,2.71,192.42,192.41,43.04]
[1761294840504,6.93223491,192.42,192.41,43.04]
[1761294841212,4.22223491,192.42,192.41,43.04]
[1761294841609,2.71,192.45,192.41,47.7168]
[1761294841805,4.22257295,192.44,192.41,47.7168]
[1761294842110,4.22257295,192.43,192.41,47.7168]
[1761294842306,2.71,192.45,192.41,47.7168]
[1761294842503,4.20912219,192.44,192.41,47.7168]
[1761294842699,4.20912219,192.43,192.39,4.6773]
[1761294842903,6.91932178,192.42,192.4,43.04]
[1761294843099,2.71,192.42,192.4,43.04]
[1761294845413,2.71,192.46,192.4,43.04]
[1761294845712,2.71,192.44,192.4,43.04]
[1761294845903,4.19581982,192.43,192.4,47.717]
[1761294846104,2.71,192.44,192.4,47.717]
[1761294846310,4.19594534,192.43,192.4,47.717]
[1761294846506,2.71,192.44,192.4,47.717]
[1761294846707,4.17797141,192.43,192.4,47.717]
[1761294846907,2.71,192.44,192.4,47.717]
[1761294847107,4.17797174,192.43,192.4,47.717]
[1761294847414,2.71,192.44,192.4,47.717]
[1761294847615,4.17790185,192.43,192.4,47.717]
[1761294847915,2.71,192.44,192.4,47.717]
[1761294848112,4.17790217,192.43,192.4,47.717]
[1761294848308,2.71,192.44,192.4,47.717]
[1761294848508,4.17792045,192.43,192.4,47.717]
[1761294848707,2.71,192.44,192.4,47.717]
[1761294848915,4.17792045,192.43,192.4,47.717]
[1761294849118,2.71,192.44,192.4,47.717]
[1761294849312,4.17791076,192.43,192.4,47.717]
[1761294849511,2.71,192.44,192.4,47.717]
[1761294849713,4.17791076,192.43,192.4,47.717]
[1761294849912,2.71,192.44,192.4,47.717]
[1761294850115,4.17791076,192.43,192.4,47.717]
[1761294850415,2.71,192.44,192.4,47.717]
[1761294850713,4.17790113,192.43,192.4,47.717]
[1761294850914,2.71,192.44,192.4,47.717]
[1761294851112,4.17790113,192.43,192.4,47.717]
[1761294851301,2.71,192.44,192.4,47.717]
[1761294851508,4.17789175,192.43,192.4,47.717]
[1761294851707,2.71,192.44,192.4,47.717]
[1761294851908,4.17789175,192.43,192.41,4.6767]
[1761294852108,2.71,192.44,192.41,4.6767]
[1761294852406,4.17794768,192.43,192.41,4.6767]
[1761294852601,2.71,192.44,192.41,4.6767]
[1761294852814,4.17788243,192.43,192.41,4.6767]
[1761294853002,2.71,192.44,192.41,4.6767]
[1761294853202,4.17788243,192.43,192.41,4.6767]
[1761294853414,2.71,192.47,192.42,4.6766]
[1761294853618,2.71,192.45,192.42,7.05114305]
[1761294853913,4.17782994,192.44,192.43,43.04]
[1761294854408,2.71,192.48,192.43,43.04]
[1761294854710,2.71,192.46,192.43,43.04]
[1761294854910,4.11465198,192.45,192.43,43.04]
[1761294855114,2.71,192.46,192.43,43.04]
[1761294855317,4.11476316,192.45,192.43,43.04]
[1761294855510,2.71,192.46,192.43,43.04]
[1761294855710,4.11476316,192.45,192.43,43.04]
[1761294855910,2.71,192.46,192.43,43.04]
[1761294856114,4.11476316,192.45,192.43,43.04]
[1761294856312,2.71,192.46,192.43,43.04]
[1761294856518,4.11493432,192.45,192.43,43.04]
[1761294856710,2.71,192.46,192.44,1.51969942]
[1761294856912,4.11493432,192.45,192.44,1.51969942]
[1761294859620,2.71,192.48,192.44,6.19579942]
[1761294859818,2.71,192.48,192.47,1.51969942]
[1761294860014,11.59541633,192.48,192.47,1.51969942]
[1761294861524,2.71,192.47,192.46,43.04]
[1761294861714,6.81161863,192.47,192.46,43.04]
[1761294867411,4.10161863,192.47,192.46,43.04]
[1761294870620,2.77,192.52,192.47,4.6752]
[1761294870822,11.59027007,192.51,192.48,1.51969942]
[1761294871114,8.82027007,192.5,192.48,1.51969942]
[1761294871320,4.0378578,192.49,192.48,1.51969942]
[1761294872828,2.77,192.51,192.48,1.51969942]
[1761294880128,2.77,192.51,192.47,4.6752]
[1761294880327,2.77,192.51,192.46,44.55969942]
[1761294880925,2.77,192.51,192.46,43.04]
[1761294881129,3.99621241,192.5,192.46,43.04]
[1761294881324,2.77,192.49,192.46,43.04]
[1761294881529,2.77,192.49,192.46,44.55969942]
[1761294890343,2.77,192.49,192.46,49.23519942]
[1761294890545,7.4443,192.52,192.46,49.23519942]
[1761294890740,2.77,192.5,192.48,1.51969942]
[1761294895042,2.77,192.51,192.48,1.51969942]
[1761294895242,3.99814165,192.5,192.48,4.6751]
[1761294895441,2.77,192.51,192.48,4.6751]
[1761294895740,3.99828784,192.5,192.48,4.6751]
[1761294895946,2.77,192.51,192.48,4.6751]
[1761294896146,3.99828784,192.5,192.48,4.6751]
[1761294896340,2.77,192.51,192.49,1.51969942]
[1761294896547,3.99873524,192.5,192.49,1.51969942]
[1761294900150,2.83,192.49,192.45,1.51969942]
[1761294900350,2.83,192.47,192.43,1.51969942]
[1761294900551,2.83,192.45,192.43,1.51969942]
[1761294902150,2.83,192.48,192.43,1.51969942]
[1761294902454,6.87476437,192.47,192.46,1.51969942]
[1761294903249,2.83,192.46,192.42,49.21619942]
[1761294903650,2.83,192.46,192.43,4.6763]
[1761294904440,4.73645989,192.48,192.43,4.6763]
[1761294904646,6.86188207,192.47,192.44,1.51969942]
[1761294904850,2.83,192.47,192.44,1.51969942]
[1761294905343,9.53620951,192.56,192.42,43.02]
[1761294905344,2.83,192.5,192.46,1.51969942]
[1761294905545,4.83035884,192.55,192.48,1.51969942]
[1761294905746,6.34771801,192.57,192.5,6.19419942]
[1761294905747,8.76608996,192.54,192.5,6.19419942]
[1761294906051,4.03104627,192.53,192.52,1.51969942]
[1761294906445,2.83,192.57,192.52,1.51969942]
[1761294906650,2.83,192.55,192.54,1.51969942]
[1761294906850,6.85949018,192.55,192.54,1.51969942]
[1761294907764,2.83,192.55,192.54,1.51969942]
[1761294908058,4.02904441,192.55,192.54,1.51969942]
[1761294908265,2.83,192.59,192.54,1.51969942]
[1761294908464,2.83,192.59,192.57,1.51969942]
[1761294908465,4.02701316,192.58,192.57,1.51969942]
[1761294910465,6.85701316,192.58,192.57,1.51969942]
[1761294910662,2.83,192.58,192.57,1.51969942]
[1761294910862,6.85351617,192.58,192.57,1.51969942]
[1761294914264,2.83,192.58,192.57,1.51969942]
[1761294916365,4.017656,192.6,192.57,1.51969942]
[1761294916566,7.5022,192.61,192.57,1.51969942]
[1761294916866,2.83,192.59,192.56,2.37134391]
[1761294918263,2.83,192.59,192.52,2.37134391]
[1761294918464,2.83,192.57,192.51,2.37134391]
[1761294919765,2.83,192.57,192.53,2.37134391]
[1761294933777,2.66,192.56,192.51,7.04564391]
[1761294937178,7.3333,192.56,192.51,2.37134391]
[1761294937377,2.66,192.55,192.51,2.37134391]
[1761294940076,2.66,192.55,192.5,45.35134391]
[1761294941285,2.66,192.55,192.5,50.02594391]
[1761294946794,2.66,192.55,192.5,45.35134391]
[1761294947092,2.66,192.54,192.5,45.35134391]
[1761294952693,4.6735,192.55,192.5,45.35134391]
[1761294952899,4.01686141,192.54,192.5,45.35134391]
[1761294953095,4.6735,192.55,192.5,45.35134391]
[1761294953096,7.3335,192.55,192.5,45.35134391]
[1761294953290,4.01686141,192.54,192.5,45.35134391]
[1761294953495,7.3335,192.55,192.5,45.35134391]
[1761294953699,4.0168051,192.54,192.5,45.35134391]
[1761294953895,7.3335,192.55,192.5,45.35134391]
[1761294954093,4.01676286,192.54,192.5,45.35134391]
[1761294954294,7.3335,192.55,192.5,45.35134391]
[1761294954495,4.01681549,192.54,192.5,45.35134391]
[1761294954690,7.3335,192.55,192.5,45.35134391]
[1761294954895,4.01681549,192.54,192.5,45.35134391]
[1761294955199,2.66,192.55,192.5,45.35134391]
[1761294955396,4.01694909,192.54,192.5,45.35134391]
[1761294955598,4.83789583,192.59,192.53,2.37134391]
[1761294955800,6.67694909,192.58,192.54,42.98]
[1761294956000,4.01694909,192.57,192.54,42.98]
[1761294956193,4.01694909,192.56,192.54,42.98]
[1761294956389,4.01694909,192.55,192.54,42.98]
[1761294957894,7.52058046,192.61,192.54,42.98]
[1761294958089,2.66,192.6,192.54,42.98]
[1761294958995,4.6726,192.59,192.54,42.98]
[1761294959298,7.3026,192.59,192.54,42.98]
[1761294962295,4.86058046,192.61,192.56,2.37134391]
[1761294962502,7.49058046,192.62,192.56,2.37134391]
[1761294964200,2.63,192.62,192.56,2.37134391]
[1761294966009,2.63,192.6,192.56,2.37134391]
[1761294967212,12.16228046,192.63,192.56,2.37134391]
[1761294967512,2.63,192.62,192.56,2.37134391]
[1761294968506,7.49058046,192.65,192.56,2.37134391]
[1761294969203,2.63,192.64,192.56,2.37134391]
[1761294969699,3.91006093,192.63,192.59,2.37134391]
[1761294969906,7.3009,192.66,192.59,45.33134391]
[1761294970106,3.90989732,192.65,192.59,45.33134391]
[1761294970309,6.53989732,192.64,192.59,45.33134391]
[1761294970506,2.63,192.64,192.59,45.33134391]
[1761294971106,2.63,192.63,192.59,45.33134391]
[1761294972805,4.6711,192.65,192.59,45.33134391]
[1761294973119,4.86058046,192.7,192.59,45.33134391]
[1761294973412,2.63,192.7,192.64,2.37134391]
[1761294973609,2.63,192.7,192.64,45.33134391]
[1761294975307,7.2992,192.73,192.67,2.37134391]
[1761294975906,2.63,192.72,192.54,15.6]
[1761294976107,2.63,192.72,192.51,12.87252538]
[1761294976108,2.63,192.69,192.61,2.37134391]
[1761294976314,2.63,192.69,192.62,104.24]
[1761294978714,2.63,192.69,192.63,1.51676087]
[1761294982916,2.63,192.69,192.65,1.51676087]
[1761294984714,2.63,192.68,192.61,62.0]
[1761294985011,2.63,192.68,192.63,1.51676087]
[1761294986818,2.63,192.68,192.65,1.51676087]
[1761294987415,7.3005,192.68,192.65,1.51676087]
[1761294987618,2.63,192.67,192.65,1.51676087]
[1761294990114,2.67,192.69,192.65,1.51676087]
[1761294990521,2.67,192.69,192.67,1.51676087]
[1761294992317,2.67,192.71,192.67,44.45676087]
[1761294992519,2.67,192.71,192.7,1.51676087]
[1761294993828,7.3389,192.74,192.7,1.51676087]
[1761294994026,7.3389,192.74,192.73,1.51676087]
[1761294999118,113.96831355,192.76,192.73,1.51676087]
[1761294999318,106.62981355,192.76,192.73,1.51676087]
[1761294999526,2.67,192.79,192.75,1.51676087]
[1761295000418,2.67,192.79,192.77,1.51676087]
[1761295000924,2.67,192.9,192.78,1.04]
[1761295001218,2.67,192.9,192.87,1.51676087]
[1761295002924,2.67,192.98,192.89,1.51676087]
[1761295003127,2.67,192.97,192.92,1.51676087]
[1761295004224,2.67,192.97,192.89,32.86]
[1761295004423,2.67,192.97,192.93,1.51676087]
[1761295004621,2.67,192.97,192.95,1.51676087]
[1761295004821,2.67,193.02,192.95,1.51676087]
[1761295005121,2.67,193.02,192.98,1.51676087]
[1761295005314,2.67,193.02,192.91,4.6644]
[1761295005519,2.67,193.02,192.95,1.51676087]
[1761295006023,2.67,193.02,192.91,4.6646]
[1761295006224,2.67,193.02,192.92,66.44]
[1761295006521,2.67,193.02,192.96,1.51676087]
[1761295006727,2.67,193.04,192.99,1.51676087]
[1761295007021,2.67,193.04,192.92,66.44]
[1761295007218,2.67,193.03,192.96,1.51676087]
[1761295008925,2.67,193.03,192.98,1.51676087]
[1761295009124,2.67,193.03,192.97,1.51676087]
[1761295009329,2.67,193.03,192.99,1.51676087]
[1761295009522,2.67,193.03,193.01,1.51676087]
[1761295010729,2.67,193.03,192.96,43.0]
[1761295010932,2.67,193.03,192.91,4.6646]
[1761295011227,2.67,193.03,192.99,1.51676087]
[1761295014331,2.67,193.03,193.01,1.51676087]
[1761295014627,2.67,193.04,193.01,1.51676087]
[1761295015022,2.67,193.04,193.03,1.51676087]
[1761295017034,2.67,193.04,193.02,1.51676087]
[1761295018331,2.67,193.04,193.01,1.51676087]
[1761295019024,2.67,193.04,192.99,1.51676087]
[1761295019224,265.46383421,193.05,193.01,1.51676087]
[1761295019937,265.46383421,193.05,192.96,40.46]
[1761295020235,268.21383421,193.05,193.02,1.51676087]
[1761295020431,268.21383421,193.05,193.01,1.51676087]
[1761295020633,268.21383421,193.05,193.0,1.51676087]
[1761295021336,1.51676087,193.09,193.02,1.51676087]
[1761295021337,2.75,193.08,193.02,1.51676087]
[1761295022243,7.4103,193.09,193.02,1.51676087]
[1761295022435,2.75,193.08,193.02,1.51676087]
[1761295023137,2.75,193.08,193.04,1.51676087]
[1761295023330,2.75,193.08,192.94,15.6]
[1761295023331,2.75,193.13,193.06,1.51676087]
[1761295023529,2.75,193.13,193.07,1.51676087]
[1761295023938,2.75,193.13,193.01,42.96]
[1761295023939,2.75,193.13,193.06,1.51676087]
[1761295024536,40.4,193.16,193.05,1.51676087]
[1761295024839,2.75,193.12,193.01,42.96]
[1761295025045,1.51676087,193.09,193.01,42.96]
[1761295025237,2.75,193.08,192.96,102.91477786]
[1761295025442,4.26676087,193.07,192.97,44.49676087]
[1761295025848,1.51676087,193.06,192.97,44.49676087]
[1761295026546,1.51676087,193.06,192.98,62.0]
[1761295026942,1.51676087,193.06,193.0,4.6624]
[1761295027639,2.75,193.07,193.0,4.6624]
[1761295027842,1.51676087,193.06,193.0,4.6624]
[1761295028239,2.75,193.07,193.0,4.6624]
[1761295028441,4.26676087,193.07,193.0,4.6624]
[1761295028641,2.75,193.07,193.0,4.6624]
[1761295028842,4.26676087,193.07,193.0,4.6624]
[1761295030245,4.26676087,193.07,192.98,66.6628]
[1761295030448,1.51676087,193.05,192.98,66.6628]
[1761295030851,4.26676087,193.05,192.98,62.0]
[1761295032547,2.75,193.02,192.97,42.98]
[1761295033246,1.51676087,193.03,192.97,42.98]
[1761295033447,4.26676087,193.09,193.01,1.51676087]
[1761295033845,2.75,193.08,193.01,1.51676087]
[1761295034447,7.4106,193.08,193.01,1.51676087]
[1761295034647,8.92736087,193.08,192.99,4.6625]
[1761295034854,4.26676087,193.08,193.01,1.51676087]
[1761295035050,2.75,193.08,193.01,1.51676087]
[1761295036155,2.75,193.07,193.0,4.6623]
[1761295036454,2.75,193.07,192.99,1.51676087]
[1761295037049,4.26676087,193.06,192.97,42.98]
[1761295037353,4.26676087,193.06,192.98,1.51676087]
[1761295037354,2.75,193.05,192.98,1.51676087]
[1761295037749,2.75,193.05,192.97,42.98]
[1761295037950,2.75,193.05,192.99,1.51676087]
[1761295038145,2.75,193.05,192.97,42.98]
[1761295038146,6.17726087,193.09,193.01,1.51676087]
[1761295038349,2.75,193.08,193.01,1.51676087]
[1761295038557,2.75,193.08,193.03,1.51676087]
[1761295038757,2.75,193.08,193.01,4.6621]
[1761295041548,2.75,193.08,193.02,42.94]
[1761295041752,2.75,193.08,193.02,47.6018]
[1761295041954,2.75,193.08,193.02,42.94]
[1761295042660,2.75,193.12,193.02,42.94]
[1761295042959,2.75,193.12,193.03,2.36002618]
[1761295043147,11.16417289,193.12,193.04,4.6613]
[1761295043353,7.4096,193.12,193.04,4.6613]
[1761295043660,2.75,193.11,193.05,42.94]
[1761295043961,2.75,193.11,193.04,4.6613]
[1761295044262,2.75,193.11,193.05,42.94]
[1761295044558,2.75,193.11,193.04,4.6613]
[1761295044857,2.75,193.11,193.05,42.94]
[1761295045259,4.6596,193.12,193.05,42.94]
[1761295045260,3.76814746,193.1,193.05,42.94]
[1761295045458,2.75,193.1,193.05,42.94]
[1761295046370,2.75,193.1,193.04,4.6613]
[1761295046562,2.75,193.1,193.05,42.94]
[1761295051659,3.85303018,193.09,193.05,42.94]
[1761295051964,2.75,193.1,193.05,42.94]
[1761295052369,2.82,193.09,193.05,42.94]
[1761295057372,2.82,193.08,193.05,42.94]
[1761295057667,2.82,193.11,193.05,42.94]
[1761295058562,4.6601,193.1,193.05,42.94]
[1761295058764,2.82,193.09,193.05,42.94]
[1761295060574,4.6599,193.11,193.05,42.94]
[1761295062172,4.6599,193.11,193.05,47.6011]
[1761295062866,7.4799,193.11,193.05,47.6011]
[1761295064375,6.75938999,193.1,193.05,47.6011]
[1761295064564,2.82,193.1,193.05,47.6011]
[1761295065867,2.82,193.1,193.05,42.94]
[1761295065868,2.82,193.09,193.05,42.94]
[1761295066773,2.82,193.08,193.05,42.94]
[1761295067273,9.70871166,193.19,193.05,42.94]
[1761295067274,2.82,193.13,193.05,45.30002618]
[1761295067470,4.6599,193.11,193.05,45.30002618]
[1761295067870,4.01581101,193.1,193.05,45.30002618]
[1761295068070,4.6599,193.11,193.05,45.30002618]
[1761295068271,4.01581144,193.1,193.05,45.30002618]
[1761295068461,4.6599,193.11,193.05,45.30002618]
[1761295068663,4.01571197,193.1,193.05,45.30002618]
[1761295068866,4.6599,193.11,193.05,45.30002618]
[1761295069071,4.01571197,193.1,193.05,49.96112618]
[1761295069270,4.6599,193.11,193.05,49.96112618]
[1761295069471,4.01559634,193.1,193.05,49.96112618]
[1761295069769,4.6599,193.11,193.05,49.96112618]
[1761295069971,4.01559612,193.1,193.05,47.6011]
[1761295070275,4.6599,193.11,193.05,47.6011]
[1761295070471,4.01548614,193.1,193.05,47.6011]
[1761295070672,4.6599,193.11,193.05,47.6011]
[1761295070870,6.83548614,193.1,193.05,47.6011]
[1761295071076,2.82,193.1,193.05,47.6011]
[1761295071471,2.82,193.1,193.05,42.94]
[1761295071675,6.83571481,193.09,193.05,42.94]
[1761295071877,2.82,193.09,193.05,42.94]
[1761295076380,4.0917138,193.08,193.05,42.94]
[1761295076577,2.82,193.09,193.05,42.94]
[1761295076779,4.0917138,193.08,193.05,42.94]
[1761295076978,2.82,193.09,193.05,42.94]
[1761295077371,4.07878633,193.08,193.05,42.94]
[1761295077573,2.82,193.09,193.05,42.94]
[1761295077772,6.89878633,193.08,193.05,42.94]
[1761295077972,2.82,193.08,193.05,42.94]
[1761295078170,2.82,193.08,193.0,62.0]
[1761295078171,2.82,193.06,193.0,62.0]
[1761295078372,4.08030314,193.05,193.01,42.86]
[1761295078574,2.82,193.09,193.02,42.86]
[1761295078783,4.08003883,193.08,193.02,42.86]
[1761295078983,6.90003883,193.07,193.02,42.86]
[1761295079178,4.08003883,193.06,193.02,42.86]
[1761295079483,2.82,193.07,193.02,42.86]
[1761295079685,4.08042636,193.06,193.02,42.86]
[1761295079883,2.82,193.07,193.02,42.86]
[1761295080080,4.08042636,193.06,193.02,42.86]
[1761295080275,2.71,193.06,193.02,42.86]
[1761295080673,2.71,193.04,193.01,42.86]
[1761295080885,6.7910402,193.03,193.01,42.86]
[1761295081072,4.08010426,193.02,193.01,42.86]
[1761295081479,6.79010426,193.02,193.01,42.86]
[1761295081773,6.79010426,193.02,192.97,42.86]
[1761295081973,2.71,193.02,192.97,42.86]
[1761295082976,4.04831255,193.01,192.97,42.86]
[1761295083178,2.71,193.0,192.97,42.86]
[1761295083379,2.71,193.0,192.95,45.22002618]
[1761295083685,2.71,193.0,192.95,42.86]
[1761295084285,4.09156578,192.99,192.95,42.86]
[1761295084593,2.71,193.02,192.95,42.86]
[1761295084784,2.71,193.0,192.95,42.86]
[1761295085092,6.80156584,192.99,192.95,42.86]
[1761295085391,6.8140618,192.98,192.8,183.34]
[1761295085592,2.71,192.96,192.88,2.36002618]
[1761295085781,6.8140618,192.95,192.88,45.24002618]
[1761295086089,2.71,192.95,192.88,45.24002618]
[1761295086490,4.86058046,192.99,192.88,45.24002618]
[1761295086491,6.81001753,192.94,192.88,45.24002618]
[1761295086690,2.71,192.94,192.88,45.24002618]
[1761295088991,2.71,192.92,192.88,42.88]
[1761295089193,2.71,192.92,192.86,2.36002618]
[1761295090891,2.71,192.91,192.85,2.36002618]
[1761295091392,7.374,192.94,192.88,2.36002618]
[1761295091688,2.71,192.93,192.88,2.36002618]
[1761295092392,2.71,192.91,192.88,2.36002618]
[1761295092995,2.71,192.91,192.86,2.36002618]
[1761295093201,2.71,192.88,192.83,2.36002618]
[1761295093494,2.71,192.95,192.86,2.36002618]
[1761295093884,4.07658469,192.97,192.85,2.36002618]
[1761295093885,2.71,192.9,192.85,2.36002618]
[1761295094991,7.374,192.94,192.88,2.36002618]
[1761295095193,2.71,192.93,192.88,2.36002618]
[1761295095497,2.71,192.93,192.81,42.9]
[1761295095803,2.71,192.93,192.88,2.36002618]
[1761295096593,2.71,192.93,192.81,42.9]
[1761295096789,2.36002618,193.01,192.81,42.9]
[1761295096790,4.86058046,193.01,192.91,2.36002618]
[1761295096990,2.71,193.02,192.96,2.36002618]
[1761295098898,2.71,193.02,193.0,1.51118841]
[1761295099895,2.71,193.04,193.0,1.51118841]
[1761295100095,2.71,193.04,193.03,1.51118841]
[1761295103802,2.71,193.04,192.96,4.6632]
[1761295104095,2.71,193.04,193.03,1.51118841]
[1761295108103,2.83,193.08,193.03,1.51118841]
[1761295108297,2.83,193.08,193.06,1.51118841]
[1761295110202,2.65,193.07,192.98,4.6629]
[1761295110404,2.65,193.07,193.04,1.51118841]
[1761295111299,2.65,193.07,192.99,4.6625]
[1761295111300,7.3109,193.07,192.99,4.6625]
[1761295111505,2.65,193.06,193.05,1.51118841]
[1761295112700,2.65,193.04,192.91,62.0]